bitfinex/quotes_SOLUSD_20241208
["timestamp","ask_amount","ask_price","bid_price","bid_amount"]
[1733631640590,0.12549,240.91,240.86,7.92403727]
[1733631640792,0.25098,240.9,240.82,0.190542]
[1733631640986,0.12549,240.88,240.82,0.190542]
[1733631641185,0.12549,240.88,240.84,7.92403727]
[1733631641778,0.12549,240.88,240.86,7.92403727]
[1733631642595,0.12549,240.88,240.85,7.92403727]
[1733631644114,0.12549,240.88,240.82,0.190542]
[1733631644291,0.12549,240.85,240.82,0.190542]
[1733631644610,23.776884,240.88,240.82,0.190542]
[1733631644611,0.37647,240.83,240.82,0.190542]
[1733631645123,0.12549,240.87,240.82,0.190542]
[1733631645293,0.12549,240.87,240.86,7.92403727]
[1733631645618,0.37647,240.87,240.86,7.92403727]
[1733631647218,0.37647,240.87,240.82,0.190542]
[1733631647688,0.37647,240.87,240.82,8.11457927]
[1733631648090,24.153354,240.87,240.82,8.11457927]
[1733631648505,24.153354,240.87,240.82,0.190542]
[1733631649506,24.153354,240.85,240.82,0.190542]
[1733631650395,0.37647,240.85,240.82,0.190542]
[1733631651817,0.37647,240.85,240.83,7.92403727]
[1733631652419,0.25098,240.85,240.83,7.92403727]
[1733631653192,0.12549,240.84,240.83,7.92403727]
[1733631654211,0.12549,240.84,240.82,0.190542]
[1733631656622,0.12549,240.83,240.82,0.190542]
[1733631656923,0.37647,240.83,240.82,0.190542]
[1733631657512,0.37647,240.83,240.82,0.065142]
[1733631657706,8.30050727,240.83,240.82,0.065142]
[1733631658906,7.80050727,240.83,240.82,0.065142]
[1733631659304,18.18130727,240.83,240.72,0.1905005]
[1733631659608,7.92403727,240.78,240.72,0.1905005]
[1733631659804,7.92403727,240.79,240.72,8.11453777]
[1733631660030,7.92403727,240.79,240.73,23.776884]
[1733631660420,7.92403727,240.79,240.72,0.1905005]
[1733631660730,7.92403727,240.78,240.72,0.1905005]
[1733631660930,0.37647,240.78,240.72,0.1905005]
[1733631661247,0.25098,240.76,240.72,0.1905005]
[1733631661430,0.37647,240.75,240.72,0.1905005]
[1733631661624,7.92403727,240.74,240.72,0.1905005]
[1733631661834,0.37647,240.73,240.72,0.1905005]
[1733631663435,8.30050727,240.73,240.72,0.1905005]
[1733631663846,8.30050727,240.73,240.72,0.0651005]
[1733631664135,8.30050727,240.73,240.62,0.1905005]
[1733631664136,0.12549,240.68,240.62,0.1905005]
[1733631664344,0.12549,240.64,240.62,0.1905005]
[1733631665535,0.25098,240.63,240.62,0.1905005]
[1733631665751,8.30050727,240.63,240.62,0.1905005]
[1733631665950,0.12549,240.62,240.61,0.2090883]
[1733631666166,8.30050727,240.62,240.61,0.2090883]
[1733631667967,9.90740727,240.62,240.61,0.2090883]
[1733631668449,9.90740727,240.62,240.61,0.0836883]
[1733631668650,9.90740727,240.62,240.51,0.1981849]
[1733631668651,0.12549,240.57,240.51,0.1981849]
[1733631668834,0.12549,240.57,240.51,8.12222217]
[1733631670330,0.12549,240.57,240.52,23.776884]
[1733631670550,0.12549,240.53,240.52,23.776884]
[1733631670756,0.12549,240.53,240.51,0.1981849]
[1733631671064,0.12549,240.53,240.51,23.9750689]
[1733631671558,0.12549,240.53,240.51,31.89910617]
[1733631672567,0.12549,240.53,240.51,23.9750689]
[1733631672731,0.12549,240.53,240.51,0.1981849]
[1733631673632,0.12549,240.53,240.52,7.92403727]
[1733631673860,0.12549,240.53,240.52,31.70092127]
[1733631674658,1.6069,240.62,240.52,31.70092127]
[1733631674954,7.92403727,240.61,240.54,7.92403727]
[1733631675358,0.25098,240.6,240.55,23.776884]
[1733631675741,0.25098,240.6,240.55,31.70092127]
[1733631675943,0.12549,240.61,240.55,23.776884]
[1733631676148,0.25098,240.59,240.55,23.776884]
[1733631676343,0.12549,240.58,240.53,31.70092127]
[1733631676934,0.12549,240.58,240.53,23.776884]
[1733631677255,0.12549,240.58,240.53,31.70092127]
[1733631678056,0.12549,240.58,240.53,23.776884]
[1733631678253,0.12549,240.58,240.53,31.70092127]
[1733631679072,0.12549,240.58,240.54,7.92403727]
[1733631679436,0.12549,240.58,240.55,23.776884]
[1733631681361,0.12549,240.58,240.57,23.776884]
[1733631681741,1.5567,240.67,240.57,23.776884]
[1733631681948,9.48073727,240.67,240.59,7.92403727]
[1733631682341,0.25098,240.66,240.6,23.776884]
[1733631682762,0.12549,240.66,240.6,23.776884]
[1733631683457,0.25098,240.66,240.6,23.776884]
[1733631683642,0.25098,240.64,240.57,7.92403727]
[1733631683845,0.25098,240.66,240.52,7.92403727]
[1733631683846,8.17501727,240.6,240.52,7.92403727]
[1733631684258,0.12549,240.59,240.54,7.92403727]
[1733631685257,0.12549,240.59,240.55,23.776884]
[1733631685636,0.25098,240.58,240.53,23.776884]
[1733631685851,0.12549,240.57,240.53,23.776884]
[1733631686861,0.12549,240.55,240.53,23.776884]
[1733631687447,0.12549,240.55,240.52,23.776884]
[1733631687970,0.12549,240.55,240.51,0.1981849]
[1733631688176,0.12549,240.53,240.51,0.1981849]
[1733631698590,0.12549,240.53,240.52,7.92403727]
[1733631699082,0.12549,240.53,240.51,23.9750689]
[1733631700980,0.12549,240.53,240.51,0.1981849]
[1733631702974,0.25098,240.52,240.51,0.1981849]
[1733631703153,0.37647,240.52,240.51,0.1981849]
[1733631711686,8.30050727,240.52,240.51,0.1981849]
[1733631711887,9.81130727,240.52,240.51,0.1981849]
[1733631712599,7.92403727,240.55,240.51,0.1981849]
[1733631712786,0.12549,240.53,240.51,0.1981849]
[1733631713291,0.25098,240.53,240.51,0.1981849]
[1733631713699,0.12549,240.52,240.51,0.1981849]
[1733631720707,8.30050727,240.52,240.51,0.1981849]
[1733631724611,0.37647,240.52,240.51,0.1981849]
[1733631724985,8.30050727,240.52,240.51,0.1981849]
[1733631726309,8.30050727,240.52,240.4,7.92403727]
[1733631726310,0.12549,240.5,240.46,0.15148103]
[1733631726516,0.25098,240.47,240.46,0.15148103]
[1733631726686,8.30050727,240.47,240.46,0.15148103]
[1733631728312,0.37647,240.47,240.46,0.15148103]
[1733631728483,8.30050727,240.47,240.46,0.15148103]
[1733631729083,8.30050727,240.47,240.46,8.103e-05]
[1733631729303,0.12549,240.41,240.36,0.1894479]
[1733631729494,8.30050727,240.37,240.36,0.1894479]
[1733631730084,0.37647,240.37,240.36,0.1894479]
[1733631730315,8.30050727,240.37,240.36,0.1894479]
[1733631730681,0.37647,240.37,240.36,0.1894479]
[1733631730905,8.30050727,240.37,240.36,0.1894479]
[1733631731724,0.37647,240.37,240.36,0.1894479]
[1733631731882,8.30050727,240.37,240.36,0.1894479]
[1733631733515,1.5389,240.41,240.36,0.1894479]
[1733631733730,7.92403727,240.41,240.36,0.1894479]
[1733631733896,0.25098,240.4,240.36,0.1894479]
[1733631734403,0.12549,240.4,240.36,0.1894479]
[1733631734998,0.12549,240.39,240.36,0.1894479]
[1733631735201,0.12549,240.37,240.36,0.1894479]
[1733631735502,0.25098,240.38,240.36,0.1894479]
[1733631735503,0.12549,240.38,240.36,0.1894479]
[1733631735726,0.37647,240.4,240.36,0.1894479]
[1733631735942,8.17501727,240.4,240.36,0.1894479]
[1733631736303,7.92403727,240.39,240.36,0.1894479]
[1733631736517,0.12549,240.38,240.36,0.1894479]
[1733631736810,0.12549,240.37,240.36,0.1894479]
[1733631738827,8.30050727,240.37,240.36,0.1894479]
[1733631741038,9.85230727,240.37,240.36,0.1894479]
[1733631741836,9.85230727,240.37,240.36,4.79e-05]
[1733631742338,41.54845635,240.37,240.36,4.79e-05]
[1733631743823,0.12549,240.32,240.27,0.1894479]
[1733631744017,8.04952727,240.28,240.27,0.1894479]
[1733631744814,8.17501727,240.28,240.27,0.1894479]
[1733631745213,8.30050727,240.28,240.27,0.1894479]
[1733631747147,9.85230727,240.28,240.27,0.1894479]
[1733631747508,1.80278,240.28,240.27,0.1894479]
[1733631747709,0.25098,240.28,240.27,0.1894479]
[1733631748821,8.17501727,240.28,240.27,0.1894479]
[1733631749328,0.25098,240.28,240.27,0.1894479]
[1733631750148,8.17501727,240.28,240.27,0.1894479]
[1733631750835,8.30050727,240.28,240.27,0.1894479]
[1733631751746,28.30050727,240.28,240.27,0.1894479]
[1733631755749,29.90870727,240.28,240.27,0.1894479]
[1733631758349,0.25098,240.27,240.17,0.1894479]
[1733631758552,7.92403727,240.19,240.17,0.1894479]
[1733631758839,7.92403727,240.2,240.17,0.1894479]
[1733631759945,7.92403727,240.2,240.15,23.776884]
[1733631760518,7.92403727,240.19,240.15,23.776884]
[1733631760717,7.92403727,240.19,240.14,23.776884]
[1733631760914,7.92403727,240.2,240.14,31.70092127]
[1733631761644,7.92403727,240.19,240.14,23.776884]
[1733631762321,7.92403727,240.15,240.11,0.2617701]
[1733631762949,7.92403727,240.16,240.11,0.2617701]
[1733631763151,0.25098,240.23,240.11,0.2617701]
[1733631763152,7.92403727,240.15,240.11,0.2617701]
[1733631764232,7.92403727,240.14,240.11,0.2617701]
[1733631764422,7.92403727,240.15,240.11,0.2617701]
[1733631765229,7.92403727,240.14,240.11,0.2617701]
[1733631765948,7.92403727,240.14,240.1,23.776884]
[1733631766132,7.92403727,240.14,240.11,0.2775816]
[1733631766334,7.92403727,240.15,240.11,0.2775816]
[1733631768326,10.4077,240.21,240.11,0.2775816]
[1733631768327,7.92403727,240.13,240.11,0.2775816]
[1733631768730,7.92403727,240.14,240.11,0.2775816]
[1733631771223,1.6082,240.2,240.11,0.2775816]
[1733631771425,7.92403727,240.19,240.14,23.776884]
[1733631771959,7.92403727,240.19,240.13,7.92403727]
[1733631771960,7.92403727,240.18,240.13,23.776884]
[1733631772157,7.92403727,240.19,240.13,31.70092127]
[1733631773832,0.25098,240.25,240.13,23.776884]
[1733631773833,7.92403727,240.18,240.13,23.776884]
[1733631774862,7.92403727,240.19,240.13,31.70092127]
[1733631775043,7.92403727,240.18,240.13,23.776884]
[1733631775765,7.92403727,240.19,240.13,31.70092127]
[1733631776288,7.92403727,240.19,240.13,23.776884]
[1733631777139,7.92403727,240.18,240.13,23.776884]
[1733631777862,7.92403727,240.19,240.13,23.776884]
[1733631778275,7.92403727,240.22,240.16,23.776884]
[1733631778434,7.92403727,240.21,240.16,23.776884]
[1733631778853,7.92403727,240.21,240.15,23.776884]
[1733631779354,7.92403727,240.22,240.16,23.776884]
[1733631780335,12.0351,240.32,240.21,23.776884]
[1733631780542,7.92403727,240.27,240.21,23.776884]
[1733631780746,7.92403727,240.26,240.21,23.776884]
[1733631780945,7.92403727,240.25,240.2,23.776884]
[1733631781234,7.92403727,240.25,240.2,0.1068913]
[1733631781454,7.92403727,240.24,240.2,0.1068913]
[1733631781662,0.25098,240.31,240.2,0.1068913]
[1733631781663,7.92403727,240.25,240.2,0.1068913]
[1733631781871,7.92403727,240.26,240.2,23.8837753]
[1733631782168,7.92403727,240.24,240.2,0.1068913]
[1733631782542,7.92403727,240.25,240.2,0.1068913]
[1733631783363,7.92403727,240.26,240.2,23.8837753]
[1733631783668,7.92403727,240.25,240.2,0.1068913]
[1733631785373,7.92403727,240.27,240.21,23.776884]
[1733631785544,7.92403727,240.26,240.21,23.776884]
[1733631785864,1.6321,240.32,240.21,31.70092127]
[1733631786162,7.92403727,240.29,240.23,23.776884]
[1733631786864,0.25098,240.35,240.23,23.776884]
[1733631787163,42.09744908,240.36,240.23,31.70092127]
[1733631787381,7.92403727,240.3,240.23,31.70092127]
[1733631787870,42.09744908,240.36,240.21,23.776884]
[1733631787871,7.92403727,240.27,240.21,23.776884]
[1733631788043,7.92403727,240.29,240.22,7.92403727]
[1733631788240,7.92403727,240.3,240.23,7.92403727]
[1733631788446,7.92403727,240.3,240.24,23.776884]
[1733631789888,20.12549,240.36,240.26,31.70092127]
[1733631790039,7.92403727,240.35,240.28,7.92403727]
[1733631790239,7.92403727,240.36,240.3,23.776884]
[1733631790572,7.92403727,240.36,240.29,7.92403727]
[1733631790573,1.6653,240.43,240.32,23.776884]
[1733631790784,1.6653,240.43,240.34,23.776884]
[1733631791072,7.92403727,240.4,240.34,23.776884]
[1733631791869,7.92403727,240.4,240.33,23.776884]
[1733631792058,7.92403727,240.4,240.35,23.776884]
[1733631792243,0.063799,240.44,240.33,31.70092127]
[1733631792443,7.92403727,240.41,240.34,7.92403727]
[1733631792870,7.92403727,240.42,240.36,23.776884]
[1733631793271,7.92403727,240.43,240.36,23.776884]
[1733631794248,7.92403727,240.42,240.36,23.776884]
[1733631794575,0.063799,240.44,240.38,23.776884]
[1733631795068,0.063799,240.44,240.38,31.70092127]
[1733631795370,0.063799,240.44,240.41,7.92403727]
[1733631795579,0.063799,240.44,240.43,31.70092127]
[1733631796447,0.063799,240.44,240.4,1.5725]
[1733631796448,0.063799,240.44,240.41,23.776884]
[1733631797452,0.063799,240.44,240.4,23.776884]
[1733631798254,0.063799,240.44,240.41,7.92403727]
[1733631798460,0.063799,240.44,240.4,31.70092127]
[1733631798657,0.063799,240.44,240.4,23.776884]
[1733631800462,0.063799,240.44,240.4,31.70092127]
[1733631801578,0.063799,240.44,240.41,7.92403727]
[1733631801883,0.063799,240.44,240.4,23.776884]
[1733631802271,0.063799,240.44,240.39,31.70092127]
[1733631802469,0.063799,240.44,240.41,23.776884]
[1733631802856,0.063799,240.44,240.43,23.776884]
[1733631803180,0.063799,240.44,240.43,31.70092127]
[1733631805251,0.063799,240.44,240.43,23.776884]
[1733631805582,0.063799,240.44,240.43,31.70092127]
[1733631807976,0.063799,240.44,240.43,23.776884]
[1733631808171,0.063799,240.44,240.41,23.776884]
[1733631808682,0.063799,240.44,240.38,7.92403727]
[1733631810102,7.98783627,240.44,240.39,23.776884]
[1733631810271,7.92403727,240.43,240.35,7.92403727]
[1733631810588,7.92403727,240.42,240.34,7.92403727]
[1733631811990,7.92403727,240.42,240.35,23.776884]
[1733631812368,7.92403727,240.4,240.3,20.0]
[1733631812575,7.92403727,240.39,240.31,7.92403727]
[1733631813087,7.92403727,240.4,240.33,7.92403727]
[1733631813482,0.12549,240.4,240.34,7.92403727]
[1733631814389,0.189289,240.44,240.37,7.92403727]
[1733631814591,0.12549,240.43,240.37,7.92403727]
[1733631815089,8.04952727,240.43,240.36,7.92403727]
[1733631815266,7.92403727,240.42,240.35,31.70092127]
[1733631815463,7.92403727,240.4,240.34,23.776884]
[1733631815974,7.92403727,240.39,240.34,23.776884]
[1733631816301,7.92403727,240.37,240.3,7.92403727]
[1733631816856,7.92403727,240.38,240.31,7.92403727]
[1733631817361,7.92403727,240.38,240.32,23.776884]
[1733631817567,0.25098,240.41,240.32,23.776884]
[1733631817769,7.92403727,240.38,240.31,23.776884]
[1733631818401,7.92403727,240.37,240.31,23.776884]
[1733631818566,12.46957425,240.37,240.31,23.776884]
[1733631818769,0.12549,240.36,240.3,12.46957425]
[1733631818992,12.46957425,240.33,240.26,12.46957425]
[1733631819695,12.46957425,240.34,240.27,12.46957425]
[1733631819891,12.46957425,240.33,240.26,12.46957425]
[1733631820901,12.46957425,240.33,240.27,23.776884]
[1733631821196,12.59506425,240.38,240.31,12.46957425]
[1733631821406,12.59506425,240.38,240.25,23.878831]
[1733631821407,14.01287425,240.4,240.33,23.776884]
[1733631822290,14.01287425,240.4,240.33,36.24645825]
[1733631823278,14.01287425,240.4,240.33,23.776884]
[1733631823597,1.5433,240.4,240.35,23.776884]
[1733631825006,14.01287425,240.4,240.34,23.776884]
[1733631827098,12.46957425,240.39,240.34,23.776884]
[1733631827282,12.46957425,240.39,240.33,23.776884]
[1733631827683,12.46957425,240.35,240.28,12.46957425]
[1733631828008,12.46957425,240.34,240.27,12.46957425]
[1733631829213,0.12549,240.39,240.25,0.101947]
[1733631829214,12.46957425,240.31,240.25,0.101947]
[1733631829813,12.46957425,240.32,240.25,0.101947]
[1733631830004,12.46957425,240.33,240.26,12.46957425]
[1733631830203,12.46957425,240.33,240.27,23.776884]
[1733631830411,0.12549,240.34,240.28,23.776884]
[1733631830598,0.12549,240.34,240.28,36.24645825]
[1733631830795,12.46957425,240.37,240.28,23.776884]
[1733631831108,12.46957425,240.35,240.28,23.776884]
[1733631831877,12.46957425,240.32,240.26,23.776884]
[1733631834013,12.46957425,240.33,240.26,23.776884]
[1733631834216,12.46957425,240.34,240.26,12.46957425]
[1733631834388,12.46957425,240.34,240.28,23.776884]
[1733631835931,12.46957425,240.33,240.26,23.776884]
[1733631836225,12.46957425,240.33,240.26,12.46957425]
[1733631836521,12.46957425,240.33,240.27,23.776884]
[1733631836701,12.46957425,240.34,240.27,12.46957425]
[1733631836906,12.46957425,240.34,240.28,23.776884]
[1733631837399,0.12549,240.34,240.28,23.776884]
[1733631838118,12.46957425,240.33,240.26,23.776884]
[1733631839724,12.46957425,240.33,240.25,12.57152125]
[1733631839725,12.46957425,240.31,240.25,0.101947]
[1733631840500,12.46957425,240.29,240.25,0.101947]
[1733631840716,12.46957425,240.3,240.25,0.101947]
[1733631841127,0.12549,240.35,240.25,0.101947]
[1733631841128,12.46957425,240.29,240.25,0.101947]
[1733631841696,12.46957425,240.29,240.25,0.1601898]
[1733631842628,12.46957425,240.26,240.25,0.1601898]
[1733631843808,12.59506425,240.26,240.25,0.1601898]
[1733631843992,12.72055425,240.26,240.25,0.1601898]
[1733631845030,12.46957425,240.28,240.25,0.1601898]
[1733631845826,12.46957425,240.26,240.25,0.1601898]
[1733631847216,12.59506425,240.26,240.25,0.1601898]
[1733631847420,12.72055425,240.26,240.25,0.1601898]
[1733631848209,0.25098,240.26,240.25,0.1601898]
[1733631848399,12.72055425,240.26,240.25,0.1601898]
[1733631850115,12.46957425,240.28,240.25,0.1601898]
[1733631850430,14.02097425,240.3,240.25,0.1601898]
[1733631851798,12.46957425,240.3,240.25,0.1601898]
[1733631852005,12.46957425,240.32,240.25,0.1601898]
[1733631852528,12.46957425,240.3,240.25,0.1601898]
[1733631855412,12.46957425,240.32,240.25,0.1601898]
[1733631856736,7.98446958,240.31,240.25,0.1601898]
[1733631862708,0.12549,240.27,240.25,0.1601898]
[1733631862910,8.10995958,240.26,240.25,0.1601898]
[1733631863535,7.98446958,240.28,240.25,0.1601898]
[1733631863846,7.98446958,240.29,240.25,0.1601898]
[1733631864841,7.98446958,240.27,240.25,0.1601898]
[1733631865413,0.12549,240.28,240.25,0.1601898]
[1733631865728,10.52689,240.35,240.25,0.1601898]
[1733631865729,20.0,240.32,240.25,0.1601898]
[1733631865925,7.98446958,240.3,240.25,0.1601898]
[1733631868822,7.98446958,240.28,240.25,0.1601898]
[1733631869015,7.98446958,240.27,240.25,0.1601898]
[1733631869334,7.98446958,240.28,240.25,0.1601898]
[1733631869528,7.98446958,240.29,240.25,0.1601898]
[1733631871042,7.98446958,240.3,240.25,0.1601898]
[1733631871238,7.98446958,240.32,240.25,0.1601898]
[1733631871733,0.12549,240.32,240.25,0.1601898]
[1733631871927,7.98446958,240.31,240.25,23.9370738]
[1733631873319,10.3987,240.42,240.31,23.776884]
[1733631873526,8.10995958,240.39,240.31,31.76135358]
[1733631873742,7.98446958,240.37,240.25,0.1601898]
[1733631873955,7.98446958,240.35,240.29,23.776884]
[1733631874123,7.98446958,240.35,240.28,7.98446958]
[1733631874517,7.98446958,240.35,240.25,0.1601898]
[1733631874839,7.98446958,240.35,240.28,7.98446958]
[1733631875726,7.98446958,240.32,240.25,31.92154338]
[1733631875928,7.98446958,240.31,240.25,0.1601898]
[1733631878242,7.98446958,240.3,240.25,0.1601898]
[1733631878551,7.98446958,240.29,240.25,0.1601898]
[1733631878932,7.98446958,240.3,240.25,0.1601898]
[1733631879437,7.98446958,240.29,240.25,0.1601898]
[1733631882234,0.25098,240.32,240.25,0.1601898]
[1733631882430,7.98446958,240.29,240.25,0.1601898]
[1733631883251,7.98446958,240.3,240.25,0.1601898]
[1733631883645,0.12549,240.32,240.25,0.1601898]
[1733631883853,7.98446958,240.3,240.25,0.1601898]
[1733631885643,7.98446958,240.29,240.25,0.1601898]
[1733631885839,7.98446958,240.28,240.25,0.1601898]
[1733631886255,7.98446958,240.29,240.25,0.1601898]
[1733631886852,7.98446958,240.3,240.25,0.1601898]
[1733631888059,0.12549,240.35,240.25,8.14465938]
[1733631888269,7.98446958,240.35,240.28,7.98446958]
[1733631889478,0.12549,240.35,240.29,7.98446958]
[1733631889838,7.98446958,240.37,240.3,7.98446958]
[1733631890147,7.98446958,240.38,240.3,7.98446958]
[1733631890339,7.98446958,240.38,240.31,7.98446958]
[1733631891771,7.98446958,240.38,240.3,7.98446958]
[1733631891950,7.98446958,240.36,240.29,7.98446958]
[1733631892139,0.12549,240.35,240.25,23.9370738]
[1733631892341,7.98446958,240.34,240.27,7.98446958]
[1733631892866,7.98446958,240.35,240.28,7.98446958]
[1733631893069,7.98446958,240.35,240.27,7.98446958]
[1733631893269,7.98446958,240.36,240.28,7.98446958]
[1733631893775,0.12549,240.35,240.28,7.98446958]
[1733631894468,0.25098,240.35,240.25,23.9370738]
[1733631894668,0.12549,240.34,240.25,23.9370738]
[1733631894846,0.12549,240.34,240.27,7.98446958]
[1733631895045,8.10995958,240.34,240.26,7.98446958]
[1733631895451,0.12549,240.34,240.27,7.98446958]
[1733631898979,7.98446958,240.34,240.26,7.98446958]
[1733631900455,7.98446958,240.33,240.26,7.98446958]
[1733631900766,7.98446958,240.3,240.25,0.1601898]
[1733631900975,7.98446958,240.27,240.25,0.1601898]
[1733631901275,7.98446958,240.29,240.25,0.1601898]
[1733631903149,7.98446958,240.28,240.25,0.1601898]
[1733631903457,0.12549,240.32,240.25,0.1601898]
[1733631903665,7.98446958,240.32,240.25,0.1601898]
[1733631903985,7.7626,240.39,240.28,7.98446958]
[1733631904143,7.98446958,240.36,240.28,7.98446958]
[1733631904341,0.12549,240.35,240.28,7.98446958]
[1733631904643,8.10995958,240.35,240.28,7.98446958]
[1733631906851,8.10995958,240.35,240.27,23.776884]
[1733631907475,7.98446958,240.33,240.26,23.776884]
[1733631910379,7.98446958,240.35,240.27,7.98446958]
[1733631910548,0.12549,240.35,240.27,7.98446958]
[1733631911480,7.98446958,240.34,240.27,7.98446958]
[1733631911982,7.98446958,240.34,240.26,31.76135358]
[1733631912550,0.25098,240.38,240.26,23.776884]
[1733631912551,7.98446958,240.32,240.26,23.776884]
[1733631912767,7.98446958,240.29,240.25,0.1601898]
[1733631914169,7.98446958,240.3,240.25,0.1601898]
[1733631917984,0.12549,240.34,240.25,0.1601898]
[1733631918188,7.98446958,240.29,240.25,0.1601898]
[1733631919482,7.98446958,240.3,240.25,0.1601898]
[1733631919678,7.98446958,240.34,240.27,7.98446958]
[1733631919867,7.98446958,240.36,240.28,7.98446958]
[1733631920179,0.12549,240.35,240.28,7.98446958]
[1733631920682,7.98446958,240.37,240.3,7.98446958]
[1733631921451,7.7626,240.39,240.31,7.98446958]
[1733631921682,7.98446958,240.38,240.31,7.98446958]
[1733631923595,6.5907,240.45,240.35,7.98446958]
[1733631923596,8.2109,240.45,240.35,7.98446958]
[1733631923799,7.98446958,240.42,240.35,7.98446958]
[1733631924168,7.98446958,240.42,240.34,7.98446958]
[1733631924466,7.98446958,240.4,240.32,7.98446958]
[1733631924770,7.98446958,240.4,240.3,23.776884]
[1733631924771,7.98446958,240.36,240.29,31.76135358]
[1733631924990,7.98446958,240.35,240.29,23.776884]
[1733631925187,7.98446958,240.35,240.28,1.6033]
[1733631925500,7.98446958,240.35,240.27,7.98446958]
[1733631926509,7.98446958,240.34,240.27,7.98446958]
[1733631926875,7.98446958,240.33,240.27,23.776884]
[1733631927603,7.98446958,240.32,240.25,0.1601898]
[1733631927770,7.98446958,240.3,240.25,20.1601898]
[1733631928997,7.98446958,240.3,240.25,0.1601898]
[1733631929201,7.98446958,240.29,240.25,0.1601898]
[1733631929512,10.65238,240.35,240.25,0.1601898]
[1733631929513,7.98446958,240.3,240.25,0.1601898]
[1733631930403,7.98446958,240.27,240.25,0.1601898]
[1733631933684,7.98446958,240.26,240.25,0.1601898]
[1733631934508,8.10995958,240.26,240.25,0.1601898]
[1733631936003,9.77894958,240.26,240.25,0.1601898]
[1733631936175,9.90443958,240.26,240.25,0.1601898]
[1733631939110,21.91997,240.26,240.25,0.1601898]
[1733631939312,29.90443958,240.26,240.25,0.1601898]
[1733631940111,21.79448,240.26,240.25,0.1601898]
[1733631940313,11.9466,240.32,240.25,0.1601898]
[1733631940489,7.98446958,240.27,240.25,0.1601898]
[1733631940676,7.98446958,240.26,240.25,0.1601898]
[1733631942800,8.10995958,240.26,240.25,0.1601898]
[1733631943012,8.36093958,240.26,240.25,0.1601898]
[1733631944598,8.23544958,240.26,240.25,0.1601898]
[1733631944804,28.23544958,240.26,240.25,0.1601898]
[1733631945516,7.98446958,240.27,240.25,0.1601898]
[1733631946012,7.98446958,240.28,240.25,0.1601898]
[1733631947890,7.98446958,240.27,240.25,0.1601898]
[1733631948094,7.98446958,240.26,240.25,0.1601898]
[1733631948401,8.10995958,240.26,240.25,0.1601898]
[1733631953809,8.23544958,240.26,240.25,0.1601898]
[1733631955314,0.12549,240.26,240.25,0.1601898]
[1733631955493,8.10995958,240.26,240.25,0.1601898]
[1733631959783,0.12549,240.26,240.25,0.1601898]
[1733631960007,8.10995958,240.26,240.25,0.1601898]
[1733631965745,0.12549,240.26,240.25,0.1601898]
[1733631966111,8.10995958,240.26,240.25,0.1601898]
[1733631967330,0.12549,240.26,240.25,0.1601898]
[1733631967535,8.10995958,240.26,240.25,0.1601898]
[1733631969242,8.23544958,240.26,240.25,0.1601898]
[1733631969451,8.36093958,240.26,240.25,0.1601898]
[1733631973344,0.12549,240.26,240.25,0.1601898]
[1733631974521,20.0,240.28,240.25,0.1601898]
[1733631974722,7.98446958,240.27,240.25,0.1601898]
[1733631975342,7.98446958,240.26,240.25,0.1601898]
[1733631977455,8.10995958,240.26,240.25,0.1601898]
[1733631977762,8.23544958,240.26,240.25,0.1601898]
[1733631979257,10.4046,240.28,240.25,0.1601898]
[1733631979461,7.98446958,240.27,240.25,0.1601898]
[1733631980555,0.12549,240.29,240.25,0.1601898]
[1733631980936,0.25098,240.29,240.25,0.1601898]
[1733631981240,20.0,240.3,240.25,0.1601898]
[1733631981640,0.12549,240.29,240.25,0.1601898]
[1733631982066,0.12549,240.26,240.25,0.1601898]
[1733631984351,8.23544958,240.26,240.25,0.1601898]
[1733631986261,8.36093958,240.26,240.25,0.1601898]
[1733631992344,10.4041,240.29,240.25,0.1601898]
[1733631992660,15.79685958,240.26,240.25,0.1601898]
[1733631992861,8.23544958,240.21,240.2,0.094476]
[1733631993765,18.76843958,240.21,240.2,0.094476]
[1733631998062,0.25098,240.2,240.16,0.094476]
[1733631998267,28.36093958,240.17,240.16,0.094476]
[1733632001498,7.98446958,240.17,240.16,0.094476]
[1733632001877,8.10995958,240.17,240.16,0.094476]
[1733632002756,8.23544958,240.17,240.16,0.094476]
[1733632003958,20.0,240.2,240.16,0.094476]
[1733632004157,7.98446958,240.18,240.16,0.094476]
[1733632004553,0.12549,240.17,240.16,0.094476]
[1733632009657,5.0,240.26,240.16,8.07894558]
[1733632009864,5.0,240.26,240.2,7.98446958]
[1733632010062,0.12549,240.25,240.2,7.98446958]
[1733632010472,0.12549,240.25,240.19,7.98446958]
[1733632011186,0.25098,240.25,240.19,7.98446958]